Cogmind - Beta 14 @@@ ROGUE MODE // 2024.11.01 @ 13:37:55 Player: weedlord420 Result: Self-destructed Performance ------------- Evolutions (4) 2000 Regions Visited (5) 1000 Robots Destroyed (72) 360 Value Destroyed (2474) 2474 Prototype IDs (14) 280 Alien Tech Used (0) 0 Bonus (318) 318 TOTAL SCORE: 6432 Bonus ------- High Alert Combat Kills 18 Registered with UFD 300 Cogmind --------- Core Integrity 544/850 Matter 244/300 Energy 107/310 System Corruption 1% Temperature Danger (445) Movement Rolling (160) Ox9 Location -6/Factory Parts ------- > --- POWER (1) -------- Fission Core > --- PROPULSION (3) --- Improved Medium Treads Improved Medium Treads Overtuned Scrapsphere > --- UTILITY (8) ------ Scrap Suit Advanced Heat Sink Large Storage Unit Improved Particle Charger Hardened Medium Armor Plating Hacking Suite System Shield > --- WEAPON (3) ------- Matter Neutralizer Matter Neutralizer Matter Neutralizer > --- INVENTORY (15) --- Improved Deuterium Engine Enhanced Nuclear Core Light Angular Momentum Engine Experimental Sensor Array Authchip [Armor] Dynamic Insulation System System Guard Mapping Drone Bay (3/3) Matter Neutralizer Subdweller Machine Gun Multitool Junk Cannon (0) Shock Maul DRS Beacon (Ready) Peak State ------------ > --- POWER ------------ Fission Core > --- PROPULSION ------- Improved Medium Treads Improved Medium Treads Overtuned Scrapsphere > --- UTILITY ---------- Scrap Suit Advanced Heat Sink Large Storage Unit Improved Particle Charger Hardened Medium Armor Plating Hacking Suite System Shield > --- WEAPON ----------- Matter Neutralizer Matter Neutralizer Matter Neutralizer > --- INVENTORY -------- Improved Deuterium Engine Enhanced Nuclear Core Light Angular Momentum Engine Experimental Sensor Array Authchip [Armor] Dynamic Insulation System System Guard Mapping Drone Bay Matter Neutralizer Subdweller Machine Gun Multitool Junk Cannon Shock Maul DRS Beacon [Rating: 74] Favorites ----------- Power Subdweller Power Source Engine Subdweller Power Source Power Core Fission Core Propulsion Subdweller Monowheel Treads Armored Treads Leg Aluminum Leg Wheel Subdweller Monowheel Utility Large Storage Unit Device Structural Scanner Storage Large Storage Unit Hackware System Shield Protection Hardened Medium Armor Plating Weapon Subdweller Machine Gun Energy Gun Medium Laser Energy Cannon Matter Neutralizer Ballistic Gun Subdweller Machine Gun Launcher Grenade Launcher Special Weapon Junk Cannon Impact Weapon Shock Maul Piercing Weapon Makeshift Spear Build | -11 -10 -10 -8 -8 -6 ------- Run | Yrd Mat Sub Rec Scr Fac Slots Evolved 8 | . . . . . 8 Power . | . . . . . . Propulsion 1 | . . . . . 1 Utility 6 | . . . . . 6 Weapon 1 | . . . . . 1 Parts Attached 107 | 6 5 47 10 13 26 Power 15 | 1 1 7 2 2 2 Engine 11 | 1 1 7 2 . . Core 4 | . . . . 2 2 Reactor . | . . . . . . Propulsion 21 | 2 . 8 4 3 4 Treads 10 | 2 . . 2 3 3 Leg 1 | . . 1 . . . Wheel 10 | . . 7 2 . 1 Hover . | . . . . . . Flight . | . . . . . . Utility 36 | 1 3 17 2 2 11 Device 14 | . 1 7 1 . 5 Storage 7 | 1 2 2 . 1 1 Processor . | . . . . . . Hackware 3 | . . . . . 3 Protection 12 | . . 8 1 1 2 Artifact . | . . . . . . Weapon 35 | 2 1 15 2 6 9 Energy Gun 1 | . . 1 . . . Energy Cannon 7 | . . 1 . 1 5 Ballistic Gun 19 | 2 1 9 2 4 1 Ballistic Cannon . | . . . . . . Launcher 3 | . . 3 . . . Special Weapon 2 | . . . . 1 1 Impact Weapon 2 | . . . . . 2 Slashing Weapon . | . . . . . . Piercing Weapon 1 | . . 1 . . . Special Melee Weapon . | . . . . . . Unidentified Prototypes 2 | . . . . 1 1 Parts Lost 11 | . 2 9 . . . Power 3 | . 1 2 . . . Propulsion 6 | . . 6 . . . Utility 1 | . . 1 . . . Weapon 1 | . 1 . . . . Highest Loss Streak 3 | . 2 3 . . . To Critical Strikes . | . . . . . . Average Slot Usage (%) 88 | . 96 82 91 98 82 Engine 8 | . 14 10 9 6 . Core 2 | . . . . 7 5 Treads 12 | . 28 . 15 27 12 Wheel 8 | . . 16 8 . 6 Device 11 | . 11 10 10 12 14 Storage 11 | . 14 10 14 13 6 Hackware 1 | . . . . . 11 Protection 2 | . . 2 3 1 5 Energy Cannon 2 | . . 1 . 1 11 Ballistic Gun 20 | . 27 19 25 26 . Piercing Weapon 3 | . . 6 2 . . Peak Build Rating 74 | 6 8 20 19 31 74 Average Rating 20 | 4 7 13 15 22 62 On Entrance 12 | . 6 8 13 19 31 Naked Turns . | . . . . . . Heaviest Build 77 | 11 29 41 39 50 77 Greatest Support 50 | 40 40 40 40 50 8 Greatest Overweight (x) 11 | . . 10 11 6 9 Average Overweight (x) 1 | . . 2 . . 7 Largest Inventory Capacity 15 | 8 15 15 15 15 15 Average Capacity 13 | 6 13 12 15 14 15 Most Carried 15 | 5 9 15 15 15 15 Average Carried 12 | 3 7 11 14 14 13 Final Capacity 15 | 8 15 15 15 15 15 Final Carried 15 | 4 9 15 15 15 15 Class Distribution -------------------- 57% | Mutant 26% | Scavenger-Mutant 6% | Hacker-Tank 4% | Subdweller-Mutant Dominant Class ---------------- Mutant | -10/Materials Scavenger-Mutant | -10/Subcaves Mutant | -8/Recycling Mutant | -8/Scraptown Hacker-Tank | -6/Factory Resources | -11 -10 -10 -8 -8 -6 ----------- Run | Yrd Mat Sub Rec Scr Fac Matter Collected 1902 | 232 268 887 126 20 369 Remotely . | . . . . . . Salvage Created 2979 | . 454 900 421 . 1204 Parts 141 | . 31 64 9 . 37 Haulers Intercepted . | . . . . . . Recyclers Shooed 3 | . . . 3 . . Parts Field Recycled . | . . . . . . Retrieved Matter . | . . . . . . Parts Self-Destructed 18 | . . 18 . . . Prevented . | . . . . . . Kills | -11 -10 -10 -8 -8 -6 ------- Run | Yrd Mat Sub Rec Scr Fac Combat Hostiles Destroyed 59 | . 9 25 . . 25 Melee 1 | . . . . . 1 Guns 25 | . 9 15 . . 1 Cannons 20 | . . 6 . . 14 AOE 4 | . . 3 . . 1 Classes Destroyed 13 | . 3 6 1 . 3 Builder 2 | . 1 . . . 1 Recycler 7 | . . . 6 . 1 Operator 1 | . 1 . . . . Turret 2 | . . 2 . . . Watcher 1 | . . . . . 1 Swarmer 14 | . . 6 . . 8 Grunt 24 | . 9 2 . . 13 Brawler 1 | . . . . . 1 Sentry 3 | . . 1 . . 2 Programmer 1 | . . . . . 1 Artisan 1 | . . 1 . . . Cobbler 1 | . . 1 . . . Subdweller 16 | . . 16 . . . Best Kill Streak 6 | . 3 5 2 . 6 Combat Bots Only 4 | . 3 3 . . 4 Max Kills in Single Turn 2 | . 1 2 1 . 2 Gunslinging . | . . . . . . Exploded 2 | . . 2 . . 1 Melee 1 | . . . . . 1 Uniques/NPCs Destroyed . | . . . . . . Combat | -11 -10 -10 -8 -8 -6 -------- Run | Yrd Mat Sub Rec Scr Fac Hostile Shots Fired 372 | . 48 161 . . 163 Missed 118 | . 13 48 . . 57 Damage Taken 4064 | . 420 2002 . . 1642 Core 548 | . 61 181 . . 306 Absorbed by Shields . | . . . . . . Regen/Repaired (Parts) 342 | . . . . . 342 Core Remaining (%) 51 | 100 . . . 3 . Volleys Fired 207 | . 52 100 7 . 48 Largest 3 | . 2 2 2 . 3 Hottest 315 | . 40 113 60 . 315 Shots Fired 410 | . 104 182 13 . 111 Gun 266 | . 104 143 13 . 6 Cannon 127 | . . 32 . . 95 Launcher 7 | . . 7 . . . Special 10 | . . . . . 10 Kinetic 259 | . 104 136 13 . 6 Thermal 138 | . . 43 . . 95 Explosive 3 | . . 3 . . . Electromagnetic . | . . . . . . Impact 10 | . . . . . 10 Robot Hit Streak 13 | . 7 11 4 . 13 Robot Miss Streak 4 | . 3 3 1 . 4 Penetration Max . | . . . . . . Secondary Targets 5 | . 3 2 . . . Max Gunslinging Chain 1 | . 1 1 . . . Shots Hit Robots 275 | . 71 117 10 . 77 Core Hits 110 | . 28 48 5 . 29 Critical Kills 2 | . . 1 . . 1 Critical Parts Destroyed 4 | . . . . . 4 Critical Strikes 7 | . . 2 . . 5 Meltdown 2 | . . 1 . . 1 Destroy 1 | . . 1 . . . Smash 4 | . . . . . 4 Melee Attacks 29 | . . 12 4 . 13 Impact 13 | . . . . . 13 Slashing . | . . . . . . Piercing 16 | . . 12 4 . . Sneak Attacks 2 | . . . 2 . . Combat Hostiles . | . . . . . . Follow-up Attacks . | . . . . . . Damage Inflicted 7258 | . 745 2489 267 . 3757 Guns 2714 | . 745 1726 159 . 84 Cannons 2744 | . . 375 . . 2369 Explosions 771 | . . 388 . . 383 Melee 492 | . . . 108 . 384 Ramming . | . . . . . . Kinetic 2831 | . 745 1843 159 . 84 Thermal 2858 | . . 489 . . 2369 Explosive 540 | . . 157 . . 383 Electromagnetic . | . . . . . . Impact 921 | . . . . . 921 Slashing . | . . . . . . Piercing 108 | . . . 108 . . Highest Corruption 1 | . . . . . 1 Average Corruption 1 | . . . . . 1 Corruption Purged . | . . . . . . Corruption Blocked . | . . . . . . Effects 3 | . . . . . 3 Message Errors 1 | . . . . . 1 Matter Fused 1 | . . . . . 1 Data Loss (minor) 1 | . . . . . 1 Overload Shots . | . . . . . . Overflow Damage 548 | . . 15 48 . 485 Projectiles 256 | . . . . . 256 Explosions 15 | . . 15 . . . Melee 277 | . . . 48 . 229 Knockbacks 4 | . . . . . 4 Impact 4 | . . . . . 4 Kinetic . | . . . . . . Secondary . | . . . . . . Self-Inflicted Damage 182 | . . 30 . . 152 Shots 3 | . . 1 . . 2 Rammed . | . . . . . . Targets Rammed . | . . . . . . Kicked . | . . . . . . Crushed . | . . . . . . Highest Temperature 539 | . 12 115 . . 539 Average Temperature 81 | . 7 33 . . 117 Received Heat Transfer 1111 | . 231 417 . . 463 Effects 2 | . . . . . 2 Shutdowns 1 | . . . . . 1 Matter Decay 1 | . . . . . 1 Siege Activations . | . . . . . . Robots Corrupted 8 | . . . . . 8 Combat Hostiles 7 | . . . . . 7 Parts Fried 9 | . . . . . 9 Impact Corruptions 12 | . . . . . 12 Robots Melted 2 | . . 1 . . 1 Combat Hostiles 2 | . . 1 . . 1 Parts Melted 6 | . . 1 . . 5 Heat Transferred 3219 | . . 851 . . 2368 Parts Sabotaged . | . . . . . . Parts Stolen . | . . . . . . Parts Stripped . | . . . . . . Power Chain Reactions . | . . . . . . Alert | -11 -10 -10 -8 -8 -6 ------- Run | Yrd Mat Sub Rec Scr Fac Peak Influence 567 | . 151 . 32 . 567 Initial . | . . . . . . Average 66 | . 43 . 10 . 118 Maximum Alert Level 2 | . . . . . 2 Low Security (%) 90 | 100 100 . 100 . 77 Level 1 9 | . . . . . 21 Level 2 . | . . . . . . Level 3 . | . . . . . . Level 4 . | . . . . . . Level 5 . | . . . . . . High Security . | . . . . . . Max Security . | . . . . . . Squads Dispatched 4 | . 2 . . . 2 Investigation 2 | . 1 . . . 1 Extermination 1 | . . . . . 1 Reinforcement 1 | . 1 . . . . Assault . | . . . . . . Garrison . | . . . . . . Intercept . | . . . . . . Searches Triggered . | . . . . . . Construction Impeded . | . . . . . . Haulers Reinforced . | . . . . . . Active Scanning Responses . | . . . . . . Cargo Convoy Interrupts . | . . . . . . Stealth | -11 -10 -10 -8 -8 -6 --------- Run | Yrd Mat Sub Rec Scr Fac Distress Signals 1 | . 1 . . . . Communications Jammed . | . . . . . . Distress Signals . | . . . . . . Times Spotted 81 | . 21 30 . . 30 Peak Tracking Total 6 | . 5 6 . . 5 Tactical Retreats 5 | . 1 1 . . 3 Traps | -11 -10 -10 -8 -8 -6 ------- Run | Yrd Mat Sub Rec Scr Fac Traps Triggered 4 | . 1 1 . . 2 Indirectly . | . . . . . . Trap Hack Attempts . | . . . . . . Triggered . | . . . . . . Disarmed . | . . . . . . Reprogrammed . | . . . . . . Reused . | . . . . . . Traps Extracted . | . . . . . . Installed . | . . . . . . Triggered 1 | . . 1 . . . Machines | -11 -10 -10 -8 -8 -6 ---------- Run | Yrd Mat Sub Rec Scr Fac Machines Disabled 9 | . . 3 . . 6 Max in Single Turn 3 | . . 3 . . 3 Garrison Access 1 | . . . . . 1 Machines Repaired . | . . . . . . Machines Dismantled . | . . . . . . Machines Sabotaged . | . . . . . . Overloaded Fab Kills . | . . . . . . Hacking | -11 -10 -10 -8 -8 -6 --------- Run | Yrd Mat Sub Rec Scr Fac Machines Accessed 19 | . 5 2 2 5 5 Terminals 7 | . 5 . 2 . . Fabricators 1 | . . . . . 1 Repair Stations 3 | . . . . . 3 Recycling Units . | . . . . . . Scanalyzers . | . . . . . . Garrison Access 1 | . . . . . 1 Total Hacks 77 | . 12 3 6 37 19 Successful 56 | . 6 3 1 37 9 Failed 21 | . 6 . 5 . 10 Catastrophic 5 | . 1 . 2 . 2 Database Lockouts . | . . . . . . Manual 14 | . 12 . 1 . 1 Terminals 18 | . 12 . 6 . . Fabricators 1 | . . . . . 1 Repair Stations 15 | . . . . . 15 Recycling Units . | . . . . . . Scanalyzers . | . . . . . . Garrison Access 3 | . . . . . 3 Terminal Hacks 44 | . 3 3 1 37 . Record 37 | . . 1 . 36 . Robot Analysis 2 | . 2 . . . . Open Door 1 | . . 1 . . . Terminal Index 1 | . 1 . . . . Surveillance Status 1 | . . . 1 . . Derelict Proto ID Bank 1 | . . . . 1 . Release Object 1 | . . 1 . . . Fabricator Hacks . | . . . . . . Repair Station Hacks 7 | . . . . . 7 Scan Component 5 | . . . . . 5 Repair 2 | . . . . . 2 Recycling Unit Hacks . | . . . . . . Scanalyzer . | . . . . . . Garrison Access Hacks 1 | . . . . . 1 Seal Access 1 | . . . . . 1 Unauthorized Hacks 4 | . 3 . . . 1 Terminals 3 | . 3 . . . . Botnet 2 | . 2 . . . . Operators 1 | . 1 . . . . Fabricators 1 | . . . . . 1 Recompile 1 | . . . . . 1 Repair Stations . | . . . . . . Recycling Units . | . . . . . . Scanalyzers . | . . . . . . Garrison Access . | . . . . . . Data Cores Recovered . | . . . . . . Used . | . . . . . . Hacking Detections 10 | . 5 . 2 . 3 Full Trace Events . | . . . . . . Feedback Events . | . . . . . . Feedback Blocked . | . . . . . . Robot Schematics Acquired . | . . . . . . Robots Built . | . . . . . . Authchips . | . . . . . . Time . | . . . . . . Total Robot Build Rating . | . . . . . . Part Schematics Acquired . | . . . . . . Parts Built . | . . . . . . Authchips . | . . . . . . Time . | . . . . . . Total Part Build Rating . | . . . . . . Parts Repaired 2 | . . . . . 2 Time 63 | . . . . . 63 Parts Recycled . | . . . . . . Recycled Matter . | . . . . . . Retrieved Matter . | . . . . . . Retrieved Components . | . . . . . . Parts Scanalyzed . | . . . . . . Part Schematics Acquired . | . . . . . . Parts Damaged . | . . . . . . Bothacking | -11 -10 -10 -8 -8 -6 ------------ Run | Yrd Mat Sub Rec Scr Fac Used RIF Installer . | . . . . . . Robots Hacked . | . . . . . . Non-combat . | . . . . . . Combat . | . . . . . . Robot Hacks Applied . | . . . . . . Relay Couplers Released . | . . . . . . Fabnet Peak Effective % . | . . . . . . Robots Rewired . | . . . . . . Allies Hacked . | . . . . . . Hacks Repelled . | . . . . . . Allies | -11 -10 -10 -8 -8 -6 -------- Run | Yrd Mat Sub Rec Scr Fac Total Allies . | . . . . . . Largest Group . | . . . . . . Highest-Rated Group . | . . . . . . Highest-Rated Ally . | . . . . . . Total Orders . | . . . . . . Ally Attacks . | . . . . . . Total Damage . | . . . . . . Kills . | . . . . . . Allies Corrupted . | . . . . . . Allies Melted . | . . . . . . Intel | -11 -10 -10 -8 -8 -6 ------- Run | Yrd Mat Sub Rec Scr Fac Robot Analysis Total 2 | . 2 . . . . Derelict Logs Recovered 6 | . . 1 . 5 . Drone Launches . | . . . . . . Drone Recoveries . | . . . . . . Exploration | -11 -10 -10 -8 -8 -6 ------------- Run | Yrd Mat Sub Rec Scr Fac Turns Passed 12915 | 85 1216 6017 751 3374 1472 Spaces Moved 6660 | 55 371 3101 376 2025 732 Core 632 | 15 . 517 31 69 . Treads 2684 | 40 371 74 243 1956 . Legs . | . . . . . . Wheels 3344 | . . 2510 102 . 732 Hover . | . . . . . . Flight . | . . . . . . Fastest Speed 50 | 50 160 107 100 50 110 Average Speed 170 | 130 160 179 183 164 149 Slowest Speed 600 | 160 160 550 600 350 160 Overloaded Moves . | . . . . . . Propulsion Burnouts . | . . . . . . Robots Hopped . | . . . . . . Cave-ins Triggered . | . . . . . . Exploration Rate (%) 59 | 4 69 96 75 92 18 Regions Visited 5 Branch Regions 3 Pre-discovered Areas 6 | . . 1 . 5 . Known Exits Taken . | . . . . . . Unknown Exits Taken 5 | 1 1 1 1 1 . Scrap Searched 13 | . . 10 . 3 . Spaces Dug 11 | . . 5 . . 6 Terrain Destroyed 123 | . . 62 . . 61 Melee 2 | . . 2 . . . Projectile 32 | . . 7 . . 25 AOE 89 | . . 53 . . 36 Terrain Rammed . | . . . . . . Walls Destroyed . | . . . . . . Machines Disabled . | . . . . . . Actions | -11 -10 -10 -8 -8 -6 --------- Run | Yrd Mat Sub Rec Scr Fac Total 7837 | 67 900 3385 418 2081 986 Wait 638 | . 461 26 12 . 139 Move 6655 | 54 370 3100 375 2024 732 Hop . | . . . . . . Pick Up 116 | 7 10 54 3 23 19 Fast Attach 20 | 3 . 3 5 7 2 Attach 44 | 3 3 19 . 4 15 Detach 8 | . . 5 . 1 2 Swap 43 | . 2 25 5 2 9 Drop 71 | . 2 35 7 20 7 Fire 207 | . 52 100 7 . 48 Melee 29 | . . 12 4 . 13 Ram . | . . . . . . Kick . | . . . . . . Crush . | . . . . . . Escape Stasis . | . . . . . . Rewire . | . . . . . . Trap . | . . . . . . Miscellaneous 6 | . . 6 . . . Route ------- -11/Scrapyard -10/Materials (discovered 4 exits: [*Mat x2] / [*Min] / *Sub) -10/Subcaves (discovered 3 exits: [*Mat x2] / *Rec) -8/Recycling -8/Scraptown (discovered 2 exits: *Fac x2) -6/Factory (discovered 5 exits: Fac x3 / Low x2) History --------- Turn | Location | Event 23 | -11/Scrapyard | Discovered new exit (range 15) 86 | -11/Scrapyard | Entered Materials 312 | -10/Materials | Build established: Mutant 358 | -10/Materials | Discovered new exit (range 11) 477 | -10/Materials | Discovered new exit (range 5) 728 | -10/Materials | Discovered new exit (range 14) 1164 | -10/Materials | Discovered new exit (range 8) 1302 | -10/Materials | Entered Subcaves 1566 | -10/Subcaves | Core integrity fell below 50% 1604 | -10/Subcaves | Discovered new exit (range 10) 1616 | -10/Subcaves | Shifting Twisted Machinery released Scrap Shield 1619 | -10/Subcaves | Shifting Twisted Machinery released Mak. Spear 1718 | -10/Subcaves | Ambushed by angry Subdweller bent on revenge 1774 | -10/Subcaves | Shifting Twisted Machinery released Mak. Power Source 1776 | -10/Subcaves | Discovered new exit (range 8) 1779 | -10/Subcaves | Learned location of Storage (-8) 1909 | -10/Subcaves | Shifting Twisted Machinery released Barrage Gun 1993 | -10/Subcaves | Shifting Twisted Machinery released Sub. Monowheel 1995 | -10/Subcaves | A swath of the cavern ceiling suddenly collapsed 2141 | -10/Subcaves | Lost 3 parts (1p2n) 2422 | -10/Subcaves | Shifting Twisted Machinery released Battle Rifle 2648 | -10/Subcaves | Build established: Scavenger-Mutant 3181 | -10/Subcaves | Core integrity fell below 20% 3263 | -10/Subcaves | A swath of the cavern ceiling suddenly collapsed 3475 | -10/Subcaves | Build established: Subdweller-Mutant 3601 | -10/Subcaves | Discovered new exit (range 14) 4143 | -10/Subcaves | Build established: Scavenger-Mutant 6194 | -10/Subcaves | Build established: Mutant 7319 | -10/Subcaves | Entered Recycling 8031 | -8/Recycling | Scanned before Scraplab entrance 8050 | -8/Recycling | Discovered new exit (range 11) 8055 | -8/Recycling | Entered Scraplab 8070 | -8/Recycling | Entered Scraptown 8387 | -8/Scraptown | Visited Fellowship of the Rings 8407 | -8/Scraptown | Visited Shadow of the Wyrm 8446 | -8/Scraptown | Visited Red Mages 8501 | -8/Scraptown | Visited Cave Peace 8846 | -8/Scraptown | Visited Assassins FH 8873 | -8/Scraptown | Visited CPS Storage 8885 | -8/Scraptown | Visited Cyclists 9186 | -8/Scraptown | Scanned Subdweller tech in exchange for log data 9189 | -8/Scraptown | Learned Factory stockpile data 9191 | -8/Scraptown | Learned 8 Factory zone layouts 9192 | -8/Scraptown | Learned location of Testing (-2) 9194 | -8/Scraptown | Learned location of 1 exit from Proximity Caves 9196 | -8/Scraptown | Learned Factory emergency access door positions 9225 | -8/Scraptown | Discovered new exit (range 3) 9707 | -8/Scraptown | Visited UFD Registry 9707 | -8/Scraptown | Registered with UFD as "Microtube" 9792 | -8/Scraptown | Visited Chapter 10 9856 | -8/Scraptown | Visited Observation Area 9938 | -8/Scraptown | Visited Science Guys 9995 | -8/Scraptown | Visited Scrapoid Research Area 10056 | -8/Scraptown | Visited Derelict Rescue Squad 10178 | -8/Scraptown | Visited Scrap Suit Storage 10226 | -8/Scraptown | Delivered Scrap Shield to a Scientist 10455 | -8/Scraptown | Visited Junk Cannon Lab 10491 | -8/Scraptown | Found Prototype Special Weapon 10492 | -8/Scraptown | Identified Junk Cannon 10534 | -8/Scraptown | Visited Infowarlord's Domain 10549 | -8/Scraptown | Found Exp. Sensor Array 10613 | -8/Scraptown | Visited Cartography Club 10843 | -8/Scraptown | Learned location of Recycling (-8) 10843 | -8/Scraptown | Learned location of Warlord (-5) 10843 | -8/Scraptown | Learned location of Hub_04(d) (-4) 10843 | -8/Scraptown | Learned location of Armory (-4) 10843 | -8/Scraptown | Learned 8 Materials zone layouts 10843 | -8/Scraptown | Learned 12 Factory zone layouts 10843 | -8/Scraptown | Learned 24 Factory zone layouts 10843 | -8/Scraptown | Learned 12 Research zone layouts 10843 | -8/Scraptown | Learned 16 Research zone layouts 10843 | -8/Scraptown | Learned 8 Lower Caves zone layouts 10843 | -8/Scraptown | Learned 12 Lower Caves zone layouts 10843 | -8/Scraptown | Learned 16 Lower Caves zone layouts 10843 | -8/Scraptown | Learned 8 Upper Caves zone layouts 10843 | -8/Scraptown | Learned 4 Hub_04(d) zone layouts 10843 | -8/Scraptown | Learned location of 2 exits from Factory 10843 | -8/Scraptown | Learned location of 2 exits from Research 10843 | -8/Scraptown | Learned location of 3 exits from Lower Caves 11019 | -8/Scraptown | Entered Cyclist Reading Room 11186 | -8/Scraptown | Found Scrap Suit 11283 | -8/Scraptown | Found DRS Beacon 11434 | -8/Scraptown | Discovered new exit (range 5) 11444 | -8/Scraptown | Entered Factory 11444 | -6/Factory | Evolved 8 slots: Propulsion x1, Utility x6, Weapon x1 11445 | -6/Factory | Identified exit to Lower Caves 11446 | -6/Factory | Identified exit to Factory 11589 | -6/Factory | Repaired Fission Core 12133 | -6/Factory | Build established: Hacker-Tank 12713 | -6/Factory | Repaired Hrd. Medium Armor Plating 12916 | -6/Factory | Self-destructed Last Messages --------------- 12899_ System corrupted: Matter fused (-7). 12902_ C-30 ARC bursts open, deploying its payload. 12902_ S-27 Virus unfolds itself. 12904_ S-27 Virus destroyed. 12910_ U-05 Engineer builds a Wall. 12911_ S-27 Virus destroyed. 12911_ Nuclear Reactor explodes. 12911_ S-27 Virus destroyed. 12912_ Power failure, Fission Core shutdown. 12912_ R-10 Processor collects VTOL Module. 12914_ The unstable cave ceiling collapses. 12914_ U-05 Engineer builds a Wall. 12914_ Ovr. Scrapsphere repairs itself (+2). 12914_ Acquired 7 matter. 12915_ Nuclear Reactor explodes. 12915_ Overheating: Matter decay (-36). 12915_ U-05 Engineer destroyed. 12915_ Nuclear Reactor explodes. 12915_ R-10 Processor destroyed. Map ----- +----------------------------------------------------+ | #### """ """ #?????# #???# #??###+##### | | + """ """ ####### ##### #??# # | | #### + #??# + | | #??# ########## #??# # | | +#+#####################????# #??######+## | | # #????# #???????# | | # #????# #???????# | | """ # ###### ######### | | """ # """ """ + | | """ # """ """ ########### #####+##+ | | + """ """ ""T"" #?????????# #?# | | """ # """"" #?????????# #?# | | """ # #??????####+##+## #?# | | """ ########+#########+######## # #?# | | #???# + ## # #?# """ " | | #???# # ! ## # #?# """ " | | #???# % ## # #?# """ " | | #####???# ###"#######+### | | ????????# = # ######## | | ????????# ! # #??????? | | ????????# # u #??????? | | ????????# %+u """" #??????? | | ????????# R """" #??????? | | ????????# [ """" #??????? | | ????????# """" #??????? | | ????????# @* """"?????????????? | | ????????# # """"?????????????? | | ????????# ### # #???????????????????? | | ????????# #?## # ##???????????????????? | | ######### #??# ##### ##????????????????????? | | # #??# #???? #?????????????????????? | | # #### ##### ##### ?????????? | | # A ?????????? | | # ################ ?????????? | | # #????????????????????????????????? | | + #????????????????????????????????? | | # #######??????????????????????????? | | ^ # # ??????????????????????????? | | ^ # # ??????????????????????????? | | ^ # # ??????????????????????????? | | # # ??????????????????????????? | | # # ??????????????????????????? | | ######### # "" ??????????????????????????? | | ???????## # "" ??????????????????????????? | | ???????# # """ ??????????????????????????? | | ???????#T + """ ??????????????????????????? | | ???????## # """ ??????????????????????????? | | ????????# # ??????????????????????????? | | ????????# # ??????????????????????????? | | ######### #######??????????????????????????? | +----------------------------------------------------+ Best States ------------- Heat Dissipation 56 Coolant Potential 65 Energy Generation 18 Energy Capacity 310 Matter Stores 300 Matter Capacity 300 Sight Range 16 Terrain Scan Density 10 Armor Coverage 800 Evasion (%) 50 Recoil Reduction 2 Particle Charging 20 Offensive Hacking 11 Defensive Hacking 10 Authchip Count 1 Item Schematics ----------------- None Robot Schematics ------------------ None Fabricated ------------ Nothing Alien Tech Used ----------------- None Achievements -------------- None Challenges ------------ None Game ------ Seed PlasmaTractorScrapsphere Manual? 0 Play Time 01:02:08 Cumulative 90.0 hours Start 2024.11.01 @ 12:36:01 End 2024.11.01 @ 13:37:55 Sessions 2 Manual Loads 0 Difficulty Rogue Special Mode None Game No. 147 Rogue 146 Adventurer 1 Explorer 0 Win Type - Total 0 Types 0/0/0/0/0/0/0/0/0 Lore% 54 Gallery% 54 Achievement% 45 Wizard Run 0 Options --------- Layout 1 ASCII 0 Keyboard 0 Movement Mouse Keybinds 0 Fullscreen 2 Font 24/Terminus Map View 50x35 Zoom Use 0% Tactical HUD 1 Map Filters NONE Filters NONE Steam 1 RUN: dcdea1aa-559b-4318-b87c-f75c06b3bd5c